bitfinex-derivatives/quotes_SOLF0:USTF0_20260121
["timestamp","ask_amount","ask_price","bid_price","bid_amount"]
[1768990081760,4.27440681,127.82,127.77,0.05057746]
[1768990081962,0.049554,127.8,127.77,0.05057746]
[1768990092565,4.34597606,127.8,127.74,14.34434358]
[1768990093774,4.34597606,127.8,127.76,0.05355186]
[1768990110876,4.34597606,127.8,127.76,7.10525186]
[1768990137693,4.34597606,127.8,127.76,0.05355186]
[1768990140595,4.42675953,127.82,127.76,4.30470506]
[1768990140789,2.09264995,127.86,127.78,4.2511532]
[1768990141897,7.0472,127.85,127.81,0.05675015]
[1768990142095,0.05813569,127.84,127.81,0.05675015]
[1768990165722,4.45417681,127.83,127.81,0.05675015]
[1768990166030,4.45417681,127.83,127.76,4.27357925]
[1768990166830,4.45417681,127.83,127.78,4.27357925]
[1768990167021,4.45417681,127.83,127.78,4.32905736]
[1768990168125,0.05514215,127.82,127.78,4.32905736]
[1768990170534,0.05514215,127.82,127.78,0.05547811]
[1768990170535,4.45417681,127.81,127.78,0.05547811]
[1768990170736,4.45417681,127.81,127.75,7.0519]
[1768990171032,4.45417681,127.81,127.74,4.27357925]
[1768990171033,4.45417681,127.8,127.74,4.27357925]
[1768990171726,4.45417681,127.8,127.76,0.05374293]
[1768990172325,4.45417681,127.8,127.76,4.32732218]
[1768990172730,6.54534634,127.82,127.76,4.32732218]
[1768990173327,0.04994015,127.8,127.76,4.32732218]
[1768990178835,0.04994015,127.8,127.76,11.37902218]
[1768990179137,6.54534634,127.82,127.76,11.37902218]
[1768990181634,0.05425031,127.8,127.76,4.32732218]
[1768990189347,4.59294623,127.8,127.76,0.05374293]
[1768990199347,6.68411576,127.8,127.76,0.05374293]
[1768990201249,0.05425031,127.8,127.76,4.35763561]
[1768990204847,4.30022399,127.83,127.76,4.35763561]
[1768990205046,4.30022399,127.83,127.77,4.52829019]
[1768990205951,4.30022399,127.83,127.79,0.05241214]
[1768990208654,7.0479,127.84,127.79,4.58070233]
[1768990208855,0.05097958,127.83,127.79,4.58070233]
[1768990215471,11.21625935,127.86,127.8,4.26999781]
[1768990215767,4.16945935,127.85,127.8,4.26999781]
[1768990216570,4.16945935,127.85,127.81,0.05823488]
[1768990216771,0.05811945,127.84,127.81,0.05823488]
[1768990219067,0.05811945,127.84,127.81,4.32823269]
[1768990219266,6.26128957,127.87,127.81,4.32823269]
[1768990219772,13.30708957,127.87,127.81,4.32823269]
[1768990219970,4.16945935,127.86,127.81,4.32823269]
[1768990220273,0.05067339,127.85,127.81,4.32823269]
[1768990222767,0.05067339,127.85,127.81,11.37723269]
[1768990222962,4.16945935,127.86,127.81,11.37723269]
[1768990223974,4.16945935,127.88,127.83,4.26999781]
[1768990224374,0.05307044,127.87,127.84,0.05645286]
[1768990235684,4.22252979,127.87,127.84,0.05645286]
[1768990236083,4.22252979,127.87,127.81,4.26999781]
[1768990237278,6.26128957,127.86,127.83,0.06017787]
[1768990237479,6.26128957,127.86,127.81,4.26999781]
[1768990238590,6.26128957,127.86,127.82,0.05968459]
[1768990239191,4.16945935,127.86,127.82,0.05968459]
[1768990240687,7.09907044,127.87,127.82,0.05968459]
[1768990240688,7.09907044,127.87,127.82,4.3296824]
[1768990241392,11.26852979,127.87,127.82,4.3296824]
[1768990241593,4.22252979,127.87,127.82,4.3296824]
[1768990246298,4.22252979,127.87,127.82,0.05968459]
[1768990246500,6.45884975,127.86,127.82,0.05968459]
[1768990249800,4.36701953,127.85,127.82,0.05968459]
[1768990263426,2.09183022,127.84,127.79,7.28919445]
[1768990263625,4.29224382,127.83,127.79,7.28919445]
[1768990264326,4.29224382,127.83,127.78,14.33959445]
[1768990264527,0.05375157,127.82,127.79,0.05668682]
[1768990265028,4.34599539,127.82,127.79,0.05668682]
[1768990265620,6.43782561,127.82,127.79,0.05668682]
[1768990265816,0.05375157,127.82,127.79,4.3301924]
[1768990266016,4.29224382,127.84,127.79,4.3301924]
[1768990266820,4.29224382,127.84,127.79,11.3802924]
[1768990267417,0.05146907,127.83,127.79,11.3802924]
[1768990268631,0.05146907,127.83,127.79,4.3301924]
[1768990269831,4.34371289,127.83,127.79,0.05668682]
[1768990276046,11.39171289,127.83,127.79,0.05668682]
[1768990276341,4.44731513,127.82,127.79,0.05668682]
[1768990276544,4.44731513,127.81,127.75,11.72115196]
[1768990276843,4.44731513,127.81,127.75,4.43195751]
[1768990277145,4.44731513,127.8,127.75,4.43195751]
[1768990277442,4.44731513,127.79,127.75,4.43195751]
[1768990277638,4.44731513,127.79,127.76,0.0545618]
[1768990277835,0.05184466,127.78,127.73,11.72115196]
[1768990278032,4.49915979,127.78,127.73,11.72115196]
[1768990278430,4.49915979,127.78,127.73,4.43195751]
[1768990279443,0.05184466,127.78,127.73,11.48535751]
[1768990279743,0.05184466,127.78,127.74,4.48313334]
[1768990281444,25.60152038,127.82,127.76,4.43195751]
[1768990281445,13.58783551,127.82,127.76,4.43195751]
[1768990282444,0.05824398,127.8,127.78,0.05097325]
[1768990283246,0.05824398,127.8,127.76,4.43195751]
[1768990284545,0.05824398,127.8,127.77,0.05828831]
[1768990285447,4.50555911,127.8,127.74,7.0529]
[1768990285839,4.50555911,127.8,127.74,11.48485751]
[1768990286646,4.50555911,127.8,127.76,0.05206888]
[1768990294852,11.55515911,127.8,127.76,0.05206888]
[1768990295052,4.50555911,127.8,127.76,0.05206888]
[1768990295457,11.55515911,127.8,127.76,0.05206888]
[1768990295658,4.44731513,127.79,127.76,0.05206888]
[1768990297341,7.10784398,127.8,127.76,0.05206888]
[1768990297546,0.05824398,127.8,127.76,0.05206888]
[1768990297954,4.50555911,127.8,127.76,0.05206888]
[1768990308760,0.05824398,127.8,127.76,11.59817869]
[1768990310769,4.3509356,127.82,127.77,11.54550981]
[1768990312359,11.3988356,127.84,127.78,4.49430981]
[1768990312868,0.05053634,127.82,127.8,0.05025036]
[1768990314669,4.40147194,127.82,127.77,7.0512]
[1768990315770,4.40147194,127.82,127.78,0.0566058]
[1768990316466,4.3509356,127.79,127.74,7.29433115]
[1768990316663,4.3509356,127.79,127.73,7.29433115]
[1768990316863,4.3509356,127.79,127.72,11.78864096]
[1768990317463,4.3509356,127.79,127.74,7.0529]
[1768990317665,0.05442197,127.77,127.74,7.0529]
[1768990319077,4.3509356,127.79,127.74,7.0529]
[1768990319378,4.3509356,127.79,127.74,7.11021735]
[1768990320275,0.05760192,127.78,127.74,7.11021735]
[1768990320966,0.05760192,127.78,127.74,0.05731735]
[1768990327576,6.64452758,127.78,127.74,0.05731735]
[1768990328170,13.69542758,127.78,127.74,0.05731735]
[1768990328884,6.64452758,127.78,127.74,0.05731735]
[1768990329085,0.05760192,127.78,127.74,4.50818058]
[1768990329486,0.05760192,127.78,127.74,11.56108058]
[1768990331385,0.05760192,127.78,127.74,4.50818058]
[1768990331591,4.55107296,127.78,127.74,0.05731735]
[1768990334585,0.05760192,127.78,127.74,4.50818058]
[1768990338289,11.43393189,127.81,127.74,4.50818058]
[1768990338893,11.43393189,127.81,127.74,11.56098058]
[1768990339193,11.43393189,127.81,127.75,4.5807233]
[1768990339492,4.38433189,127.81,127.76,4.5807233]
[1768990339790,4.38433189,127.83,127.77,4.5807233]
[1768990340183,4.38433189,127.83,127.78,11.6313233]
[1768990340691,0.05261147,127.82,127.79,0.05613573]
[1768990350699,4.43694336,127.82,127.79,0.05613573]
[1768990351902,4.43694336,127.82,127.76,11.6320233]
[1768990352397,4.38433189,127.81,127.76,4.5807233]
[1768990353093,4.38433189,127.81,127.77,0.05310543]
[1768990363908,7.10111147,127.82,127.77,4.63382873]
[1768990364502,11.48544336,127.82,127.77,4.63382873]
[1768990374609,4.43694336,127.82,127.77,4.63382873]
[1768990376008,4.50935358,127.81,127.77,4.63382873]
[1768990376509,4.50935358,127.81,127.77,0.05310543]
[1768990380402,4.50935358,127.81,127.77,7.10430543]
[1768990381811,4.14717312,127.82,127.77,11.60816119]
[1768990383111,0.05261147,127.82,127.78,11.55435576]
[1768990383511,4.09456165,127.84,127.78,11.55435576]
[1768990384610,4.09456165,127.84,127.8,0.05279455]
[1768990388115,4.15138065,127.83,127.8,0.05279455]
[1768990396319,4.09716315,127.82,127.76,11.72189966]
[1768990396515,4.09716315,127.82,127.76,4.41056398]
[1768990396713,2.09173861,127.81,127.76,4.41056398]
[1768990396915,6.18890176,127.81,127.76,4.41056398]
[1768990397320,6.18890176,127.81,127.77,0.05841263]
[1768990397716,4.09716315,127.8,127.77,0.05841263]
[1768990397921,4.14882822,127.8,127.74,11.72189966]
[1768990398531,4.09716315,127.79,127.74,7.31133568]
[1768990398721,6.18890176,127.79,127.74,7.31133568]
[1768990398923,4.09716315,127.78,127.74,7.31133568]
[1768990399218,0.05450043,127.77,127.75,0.05816388]
[1768990401726,4.09716315,127.78,127.75,0.05816388]
[1768990404228,4.15625835,127.78,127.75,0.05816388]
[1768990408021,7.0497,127.8,127.75,11.52092786]
[1768990408022,4.09716315,127.8,127.75,11.52092786]
[1768990409328,4.09716315,127.8,127.76,7.0517]
[1768990409933,4.09716315,127.82,127.77,4.41056398]
[1768990410824,4.09716315,127.82,127.77,11.46176398]
[1768990411027,4.09716315,127.82,127.78,0.05534449]
[1768990411525,0.04934659,127.81,127.78,0.05534449]
[1768990413034,2.09173861,127.84,127.78,11.51650847]
[1768990414635,9.13803861,127.86,127.79,11.46066398]
[1768990415037,4.09716315,127.85,127.79,11.46066398]
[1768990415936,0.05612997,127.83,127.81,0.0497254]
[1768990423446,4.15329312,127.83,127.81,0.0497254]
[1768990423653,4.15329312,127.83,127.77,11.46126398]
[1768990424639,4.15329312,127.83,127.79,0.05402529]
[1768990425647,4.15329312,127.83,127.8,8.2]
[1768990439871,0.05612997,127.83,127.8,12.52140045]
[1768990441670,6.36105218,127.87,127.81,4.14579883]
[1768990442773,0.05329043,127.85,127.83,0.05909946]
[1768990459391,4.39315309,127.85,127.8,8.2]
[1768990459682,4.39315309,127.85,127.8,4.19958614]
[1768990460382,4.39315309,127.85,127.81,0.05146808]
[1768990460583,0.05329043,127.85,127.81,4.25105422]
[1768990462388,4.39315309,127.85,127.81,0.05146808]
[1768990463189,4.39315309,127.85,127.82,7.78]
[1768990470890,11.44015309,127.85,127.82,7.78]
[1768990471192,11.44015309,127.85,127.81,0.05146808]
[1768990474704,11.44015309,127.85,127.81,5.37146808]
[1768990476895,11.44015309,127.85,127.81,9.57105422]
[1768990477094,4.39315309,127.85,127.81,9.57105422]
[1768990478489,4.33986266,127.84,127.81,5.37146808]
[1768990478896,4.33986266,127.84,127.81,6.808e-05]
[1768990479296,11.38766266,127.84,127.81,6.808e-05]
[1768990479692,4.33986266,127.84,127.81,6.808e-05]
[1768990480191,4.33986266,127.84,127.81,0.05645749]
[1768990485200,4.33986266,127.84,127.81,0.05645749]
[1768990486997,7.10039043,127.85,127.81,0.05645749]
[1768990487685,11.32108724,127.85,127.81,0.05645749]
[1768990501404,7.0474,127.84,127.81,0.05645749]
[1768990503605,7.0474,127.84,127.81,0.05638941]
[1768990505590,7.0481,127.83,127.81,0.05638941]
[1768990505792,4.20152347,127.82,127.78,3.87320724]
[1768990506206,2.09069455,127.84,127.78,3.87320724]
[1768990506207,6.29221802,127.84,127.78,3.87320724]
[1768990507095,6.29221802,127.84,127.79,5.28]
[1768990507295,4.20152347,127.83,127.79,5.28]
[1768990507803,11.24952347,127.83,127.79,5.28]
[1768990515806,3.91468853,127.85,127.8,4.12550804]
[1768990516511,0.05329043,127.85,127.8,4.12550804]
[1768990516813,7.10019043,127.85,127.8,4.12550804]
[1768990517108,0.05329043,127.85,127.8,4.12550804]
[1768990517915,0.05329043,127.85,127.8,11.17510804]
[1768990518111,3.8613981,127.87,127.81,4.12550804]
[1768990519009,3.8613981,127.86,127.81,4.12550804]
[1768990522305,7.0458,127.87,127.81,4.12550804]
[1768990523216,10.9071981,127.87,127.81,4.12550804]
[1768990524804,3.8613981,127.87,127.82,4.12550804]
[1768990526411,10.9071981,127.87,127.82,4.12550804]
[1768990527617,3.8613981,127.87,127.82,4.12550804]
[1768990534923,3.8613981,127.87,127.81,11.17450804]
[1768990535520,3.8613981,127.86,127.8,11.17510804]
[1768990539434,3.8613981,127.86,127.81,4.12550804]
[1768990539628,3.8613981,127.85,127.79,9.40550804]
[1768990540034,3.8613981,127.85,127.8,4.12550804]
[1768990542433,3.8613981,127.85,127.8,11.17510804]
[1768990544540,3.8613981,127.85,127.8,4.12550804]
[1768990547247,3.8613981,127.85,127.81,6.58]
[1768990547838,10.9081981,127.85,127.81,6.58]
[1768990549246,6.10254159,127.84,127.81,6.52670957]
[1768990550147,4.0106354,127.83,127.78,3.77984608]
[1768990552841,4.0106354,127.83,127.79,8.12]
[1768990554849,2.09190619,127.82,127.79,8.12]
[1768990558950,13.13322634,127.82,127.76,4.06972912]
[1768990560644,109.6213,127.85,127.74,4.06972912]
[1768990560645,2.09190619,127.8,127.74,4.06972912]
[1768990560841,2.09190619,127.78,127.74,4.06972912]
[1768990562952,2.09190619,127.78,127.74,10.69972912]
[1768990563348,0.0511142,127.77,127.75,0.05808608]
[1768990567457,3.99282015,127.79,127.75,0.05808608]
[1768990569558,0.05077888,127.78,127.75,0.05808608]
[1768990579362,4.02040636,127.78,127.75,0.05808608]
[1768990579764,0.05077888,127.78,127.75,0.05808608]
[1768990582258,0.05077888,127.78,127.75,4.06523359]
[1768990582459,13.11271776,127.8,127.75,4.06523359]
[1768990583467,6.06291776,127.8,127.75,4.06523359]
[1768990583669,3.96962748,127.8,127.75,4.06523359]
[1768990584071,0.04940056,127.79,127.75,4.06523359]
[1768990585465,3.96962748,127.82,127.76,4.00714751]
[1768990586574,3.96962748,127.82,127.78,0.05506946]
[1768990587370,0.04953331,127.81,127.78,0.05506946]
[1768990592486,2.09329028,127.85,127.78,4.06221697]
[1768990592682,3.96962748,127.86,127.78,4.06221697]
[1768990592683,3.96962748,127.86,127.78,4.00714751]
[1768990593588,3.96962748,127.86,127.81,0.05130755]
[1768990595778,3.96962748,127.84,127.81,0.05130755]
[1768990598391,6.06291776,127.86,127.81,4.05845506]
[1768990598592,3.96962748,127.86,127.81,4.05845506]
[1768990605599,6.06291776,127.86,127.81,4.05845506]
[1768990606000,3.82423996,127.85,127.81,4.05845506]
[1768990606701,3.82423996,127.85,127.81,0.05130755]
[1768990608008,10.87113996,127.85,127.81,0.05130755]
[1768990608704,3.82423996,127.84,127.81,0.05130755]
[1768990613507,10.87183996,127.84,127.81,0.05130755]
[1768990613818,10.92292056,127.84,127.79,3.91213654]
[1768990614905,3.82423996,127.83,127.8,0.05872483]
[1768990615595,3.82423996,127.83,127.77,10.96333654]
[1768990615596,3.82423996,127.82,127.77,3.91213654]
[1768990616600,0.04976244,127.81,127.78,0.05963937]
[1768990618403,3.83089977,127.84,127.79,3.82262212]
[1768990619406,0.0597188,127.83,127.79,3.82262212]
[1768990623010,3.89061857,127.83,127.79,3.82262212]
[1768990623308,3.89061857,127.83,127.78,7.11023937]
[1768990625415,0.0597188,127.83,127.79,3.82262212]
[1768990630706,10.93861857,127.83,127.78,0.05963937]
[1768990630911,3.83089977,127.82,127.78,0.05963937]
[1768990631913,10.87949977,127.82,127.78,0.05963937]
[1768990633416,3.83089977,127.81,127.78,0.05963937]
[1768990634721,3.83089977,127.8,127.75,11.10500141]
[1768990634918,3.83089977,127.8,127.75,3.82262212]
[1768990636016,10.88049977,127.8,127.75,3.82262212]
[1768990641613,3.7963452,127.79,127.73,18.24203627]
[1768990641818,12.93888493,127.79,127.73,11.18863627]
[1768990642219,3.7963452,127.78,127.73,11.18863627]
[1768990642419,3.7963452,127.78,127.73,3.90625698]
[1768990643928,7.0513,127.77,127.73,3.90625698]
[1768990646224,3.7963452,127.78,127.73,3.90625698]
[1768990647932,3.7963452,127.77,127.73,3.90625698]
[1768990649132,3.7963452,127.77,127.71,10.96025698]
[1768990650125,3.7963452,127.77,127.72,3.90625698]
[1768990651632,10.8477452,127.77,127.72,3.90625698]
[1768990659336,3.7963452,127.75,127.7,3.90625698]
[1768990660541,3.7963452,127.76,127.7,3.90625698]
[1768990662045,10.8481452,127.76,127.7,3.90625698]
[1768990663545,10.8487452,127.75,127.7,3.90625698]
[1768990679665,12.94108493,127.75,127.7,3.90625698]
[1768990680166,12.94108493,127.75,127.68,7.2675737]
[1768990680167,3.79258961,127.73,127.68,11.12470943]
[1768990680460,23.51,127.77,127.67,3.85713573]
[1768990680667,5.88492934,127.74,127.68,3.85713573]
[1768990681766,5.88492934,127.74,127.68,10.91323573]
[1768990682465,12.93782934,127.74,127.68,10.91323573]
[1768990685167,10.84548961,127.74,127.68,13.00557546]
[1768990685467,10.84548961,127.74,127.68,10.91323573]
[1768990688268,12.93782934,127.74,127.68,10.91323573]
[1768990693071,12.94059723,127.74,127.68,10.91323573]
[1768990694474,12.94059723,127.74,127.7,0.0507378]
[1768990694875,3.79258961,127.73,127.7,0.0507378]
[1768990699081,3.8429187,127.73,127.7,0.0507378]
[1768990701481,3.8429187,127.73,127.7,0.01039108]
[1768990702274,10.8964187,127.73,127.7,0.01039108]
[1768990703480,3.65440905,127.72,127.7,0.01039108]
[1768990707181,3.65440905,127.72,127.67,7.2675737]
[1768990707578,12.80361667,127.72,127.67,7.2675737]
[1768990708085,3.65440905,127.71,127.67,7.2675737]
[1768990708278,3.65440905,127.71,127.66,18.29662737]
[1768990708480,0.05981237,127.7,127.68,0.05981836]
[1768990724307,3.71422142,127.7,127.68,0.05981836]
[1768990725808,0.05981237,127.7,127.68,0.05981836]
[1768990726013,3.93480369,127.73,127.68,3.91136572]
[1768990726912,3.93480369,127.73,127.68,11.21704171]
[1768990727809,3.93480369,127.73,127.68,18.27324171]
[1768990730217,10.98770369,127.75,127.69,3.85154736]
[1768990730716,10.98770369,127.75,127.71,0.05440063]
[1768990735316,3.93480369,127.74,127.71,0.05440063]
[1768990736310,3.98556734,127.74,127.71,0.05440063]
[1768990766850,3.98556734,127.74,127.7,7.0548]
[1768990767944,3.98556734,127.74,127.71,0.05011958]
[1768990769650,3.98556734,127.74,127.71,7.10461958]
[1768990771653,3.98556734,127.74,127.71,0.05011958]
[1768990797160,3.79363745,127.76,127.71,0.05011958]
[1768990797363,23.53,127.8,127.71,11.08019692]
[1768990797569,23.53,127.8,127.71,11.03007734]
[1768990797759,7.0502,127.79,127.72,18.31819483]
[1768990798267,7.0502,127.79,127.72,11.00824483]
[1768990798468,7.0502,127.79,127.74,0.05948077]
[1768990799475,3.2295162,127.78,127.74,0.05948077]
[1768990800375,3.23776233,127.8,127.74,6.10843106]
[1768990800573,3.23776233,127.8,127.74,13.41838106]
[1768990800963,3.24583566,127.82,127.76,11.00604483]
[1768990801369,3.24583566,127.82,127.78,0.05592826]
[1768990803069,0.05352406,127.81,127.78,0.05592826]
[1768990808487,2.2382184,127.81,127.76,3.95424483]
[1768990809481,2.2382184,127.81,127.77,0.05315894]
[1768990814881,2.1315354,127.8,127.73,3.95424483]
[1768990815785,2.12901241,127.79,127.73,11.00764483]
[1768990815983,2.12901241,127.79,127.74,3.28639571]
[1768990816178,2.12901241,127.79,127.75,3.33824045]
[1768990816380,0.05027436,127.78,127.75,3.33824045]
[1768990821187,0.05027436,127.78,127.75,10.39054045]
[1768990821387,2.12901241,127.8,127.75,10.39054045]
[1768990821388,11.27060169,127.82,127.76,3.28639571]
[1768990821595,2.12901241,127.81,127.76,3.28639571]
[1768990822486,0.05563347,127.8,127.77,0.05717577]
[1768990825095,2.18464588,127.8,127.77,0.05717577]
[1768990826395,2.18464588,127.8,127.74,3.28639571]
[1768990827197,2.18464588,127.8,127.74,10.33919571]
[1768990827494,2.18464588,127.8,127.76,0.05364335]
[1768990828897,9.23434588,127.8,127.76,0.05364335]
[1768990832800,2.07536906,127.78,127.72,3.28639571]
[1768990833799,2.07536906,127.77,127.72,3.28639571]
[1768990834001,2.07536906,127.77,127.74,0.05218959]
[1768990834793,7.0511,127.78,127.74,0.05218959]
[1768990834995,9.12646906,127.78,127.72,3.28639571]
[1768990835501,2.07536906,127.77,127.72,3.28639571]
[1768990836098,2.07536906,127.77,127.73,0.05233761]
[1768990836498,0.0589585,127.76,127.73,0.05233761]
[1768990840901,9.18622756,127.76,127.7,10.55715474]
[1768990842004,9.18622756,127.76,127.72,0.05656637]
[1768990843601,11.22045834,127.75,127.7,10.55715474]
[1768990843801,11.22045834,127.75,127.7,3.28639571]
[1768990844803,11.22045834,127.75,127.71,0.05529187]
[1768990846590,9.12786906,127.75,127.71,0.05529187]
[1768990846803,2.07536906,127.75,127.71,0.05529187]
[1768990849201,9.12776906,127.75,127.71,0.05529187]
[1768990849406,11.22035834,127.75,127.71,0.05529187]
[1768990849803,2.0779434,127.74,127.71,0.05529187]
[1768990850806,9.1308434,127.74,127.71,0.05529187]
[1768990851108,9.1308434,127.74,127.68,17.48592706]
[1768990852196,9.1308434,127.74,127.68,10.21516803]
[1768990852399,0.05156656,127.72,127.68,10.21516803]
[1768990853007,2.12950996,127.72,127.67,7.27075903]
[1768990853196,2.12950996,127.72,127.67,3.15946803]
[1768990857208,2.12950996,127.72,127.67,10.21616803]
[1768990860707,2.07956749,127.7,127.65,10.7163909]
[1768990860907,2.07956749,127.7,127.65,3.44563187]
[1768990861304,2.07956749,127.69,127.63,3.44563187]
[1768990861509,4.17215677,127.69,127.63,3.44563187]
[1768990862411,0.05520302,127.67,127.65,0.05878815]
[1768990864019,0.05520302,127.67,127.61,10.50523187]
[1768990864020,2.13477051,127.67,127.61,10.50523187]
[1768990864914,4.22735979,127.67,127.61,10.50523187]
[1768990865314,4.22735979,127.67,127.62,3.44563187]
[1768990866319,11.28415979,127.67,127.63,0.05028453]
[1768990872920,9.19157051,127.67,127.63,0.05028453]
[1768990873124,2.09258928,127.66,127.63,0.05028453]
[1768990876928,11.28908813,127.67,127.63,0.05028453]
[1768990879027,2.0795899,127.66,127.63,0.05028453]
[1768990882528,2.0795899,127.66,127.6,10.26908952]
[1768990883629,0.05278324,127.64,127.6,10.26908952]
[1768990884633,2.13237314,127.64,127.6,7.0606]
[1768990886140,2.13237314,127.64,127.59,10.26968952]
[1768990886332,2.13237314,127.64,127.59,3.20848952]
[1768990886933,9.19107314,127.64,127.6,0.05670359]
[1768990887539,2.0795899,127.63,127.6,0.05670359]
[1768990888735,2.0795899,127.63,127.57,10.27048952]
[1768990890040,0.05144641,127.61,127.57,10.27048952]
[1768990892242,0.05144641,127.61,127.58,3.20848952]
[1768990896847,0.05144641,127.61,127.58,3.26775683]
[1768990898246,4.17710752,127.63,127.58,3.26775683]
[1768990899249,2.0795899,127.62,127.58,0.05926731]
[1768990899550,2.13770552,127.62,127.58,0.05926731]
[1768990914751,2.08064028,127.64,127.59,3.16087055]
[1768990916053,0.05133358,127.63,127.6,0.05732547]
[1768990916258,2.08064028,127.64,127.6,0.05732547]
[1768990917256,0.05233938,127.63,127.6,0.05732547]
[1768990922065,2.13298893,127.63,127.6,0.05732547]
[1768990933773,2.02332408,127.62,127.58,7.27609544]
[1768990933973,2.02332408,127.62,127.57,7.27609544]
[1768990934969,0.0499964,127.61,127.57,7.27609544]
[1768990935175,0.0499964,127.61,127.58,0.05253559]
[1768990939778,2.07136513,127.61,127.58,0.05253559]
[1768990939973,2.07136513,127.61,127.56,7.27609544]
[1768990940373,4.16994948,127.61,127.56,7.27609544]
[1768990940579,2.02136873,127.6,127.55,10.66694589]
[1768990941070,2.02136873,127.6,127.56,0.05798377]
[1768990942265,2.02136873,127.58,127.53,3.39085045]
[1768990943364,0.05637544,127.57,127.53,10.45525045]
[1768990943571,0.05637544,127.57,127.53,17.73134589]
[1768990945075,0.05637544,127.57,127.54,0.0521587]
[1768990949679,2.02136873,127.6,127.55,10.45415045]
[1768990950782,0.05044768,127.59,127.55,10.45415045]
[1768990953681,2.07774417,127.62,127.56,3.39085045]
[1768990954886,0.05148946,127.6,127.58,0.05761714]
[1768990958584,2.07774417,127.62,127.58,7.11931714]
[1768990958786,2.07774417,127.64,127.58,3.44846759]
[1768990959696,0.05012037,127.62,127.58,3.44846759]
[1768990959887,0.05012037,127.62,127.59,10.45205045]
[1768990962986,0.05012037,127.62,127.59,3.39085045]
[1768990981205,7.0586,127.64,127.59,3.39085045]
[1768990982707,0.05150063,127.63,127.59,3.39085045]
[1768990985106,7.0579,127.66,127.59,3.39085045]
[1768990985597,9.23622929,127.66,127.59,3.39085045]
[1768990986105,0.05325421,127.64,127.61,0.05855389]
[1768990988197,2.09858435,127.67,127.61,3.22878873]
[1768990988408,9.23512929,127.68,127.61,3.22878873]
[1768990989309,0.05038696,127.66,127.61,3.22878873]
[1768990989896,0.05038696,127.66,127.61,10.28878873]
[1768990990102,0.05038696,127.66,127.62,3.17023484]
[1768990998320,0.05038696,127.66,127.62,10.22973484]
[1768990998516,0.05038696,127.66,127.63,3.15026819]
[1768990999424,7.0557,127.69,127.63,3.15026819]
[1768991000414,0.05877863,127.67,127.65,0.06018339]
[1768991021240,0.05877863,127.67,127.64,3.15026819]
[1768991022337,0.05877863,127.67,127.64,3.20798028]
[1768991043054,0.05877863,127.67,127.64,10.5267003]
[1768991043250,0.05877863,127.67,127.65,3.48421612]
[1768991043753,0.05877863,127.67,127.65,1.612e-05]
[1768991053265,0.05877863,127.67,127.64,7.4021671]
[1768991053458,0.05877863,127.67,127.64,10.88638322]
[1768991066869,2.09633233,127.7,127.65,3.20645134]
[1768991067068,10.45731412,127.71,127.65,3.20645134]
[1768991068076,0.05300024,127.69,127.67,0.05481648]
[1768991076077,3.40251412,127.71,127.67,3.26126782]
[1768991080382,0.05794528,127.7,127.67,3.26126782]
[1768991096921,2.09633233,127.72,127.67,3.26126782]
[1768991097913,0.04997098,127.71,127.67,3.26126782]
[1768991103812,7.10457098,127.71,127.67,3.26126782]
[1768991111010,10.51441086,127.71,127.67,0.05481648]
[1768991130838,3.19417122,127.69,127.66,7.32777837]
[1768991131132,3.19417122,127.69,127.64,3.37745652]
[1768991131835,3.19417122,127.68,127.64,3.37745652]
[1768991132033,3.25296629,127.68,127.65,0.05080926]
[1768991134735,10.30956629,127.68,127.62,10.43695652]
[1768991134939,3.19417122,127.67,127.62,3.37745652]
[1768991136038,3.19417122,127.67,127.63,0.05414658]
[1768991136839,10.25107122,127.67,127.63,0.05414658]
[1768991137228,3.19417122,127.67,127.63,0.05414658]
[1768991137436,0.05879507,127.68,127.63,3.4316031]
[1768991138440,7.11499507,127.68,127.63,3.4316031]
[1768991142535,0.05879507,127.68,127.63,3.4316031]
[1768991147358,3.24690679,127.68,127.63,3.4316031]
[1768991152165,5.3427182,127.68,127.63,3.4316031]
[1768991160966,3.24690679,127.68,127.63,3.4316031]
[1768991162460,3.24690679,127.68,127.63,10.4906031]
[1768991164768,0.05879507,127.68,127.64,3.28549003]
[1768991169673,0.05879507,127.68,127.64,10.34379003]
[1768991169871,3.48010394,127.71,127.65,3.28549003]
[1768991170774,3.48010394,127.71,127.65,10.34329003]
[1768991170977,3.48010394,127.71,127.67,0.05583319]
[1768991173173,10.53490394,127.71,127.67,0.05583319]
[1768991173477,3.48010394,127.7,127.67,0.05583319]
[1768991176579,3.53072893,127.7,127.67,0.05583319]
[1768991179579,0.05062499,127.7,127.67,0.05583319]
[1768991181176,3.4106727,127.72,127.67,3.24516334]
[1768991182576,0.05003174,127.71,127.67,3.24516334]
[1768991196483,0.05003174,127.71,127.67,10.30186334]
[1768991208900,0.05003174,127.71,127.67,3.24516334]
[1768991219816,7.10463174,127.71,127.67,3.24516334]
[1768991220021,12.37505763,127.71,127.67,3.24516334]
[1768991221014,3.17501444,127.69,127.65,3.20162987]
[1768991221212,3.17501444,127.69,127.61,3.20162987]
[1768991221213,5.27042589,127.69,127.61,3.20162987]
[1768991221613,2.09541145,127.69,127.61,3.20162987]